fUST/lending_fUST_20250408
["ID","MTS","AMOUNT","RATE_DAILY","PERIOD"]
[357514007,1744102169130,-160.0,0.00026289,2]
[357514008,1744102169152,-300.0,0.00026295,2]
[357514009,1744102169174,-12530.86563381,0.00026296,2]
[357514010,1744102169197,-975.2930182,0.0002632,4]
[357514011,1744102169223,-672.702999,0.00026439,2]
[357514012,1744102169246,-2100.0737435,0.00026498,2]
[357514013,1744102169269,-4285.22104752,0.000269,7]
[357514014,1744102169292,-419.46366559,0.00026962,2]
[357514015,1744102169314,-837.41003169,0.00026962,2]
[357514016,1744102169336,-2558.8764642,0.00026962,2]
[357514017,1744102169357,-500.0,0.00026973,2]
[357514018,1744102169380,-500.0,0.00026973,2]
[357514019,1744102169400,-500.0,0.00026973,2]
[357514020,1744102169421,-500.0,0.00026973,2]
[357514021,1744102169442,-500.0,0.00026973,2]
[357514022,1744102169462,-500.0,0.00026973,2]
[357514023,1744102169484,-194.52230723,0.00026973,2]
[357514024,1744102169505,-500.0,0.00026973,2]
[357514025,1744102169524,-160.0,0.00026973,2]
[357514026,1744102169546,-160.0,0.00026973,2]
[357514027,1744102169569,-9624.11044243,0.00026977,2]
[357514031,1744102231723,-219.0,0.00026128,2]
[357514032,1744102231733,-24900.0,0.00026129,2]
[357514033,1744102231742,-4142.38034611,0.000269,7]
[357514034,1744102231751,-500.0,0.00026973,2]
[357514035,1744102231760,-32042.7696576,0.00026977,2]
[357514036,1744102231771,-278.80680054,0.00026977,2]
[357514037,1744102231790,-8054.31309943,0.00026977,2]
[357514038,1744102231800,-808.27984228,0.00027063,2]
[357514039,1744102231809,-500.0,0.00027073,2]
[357514040,1744102231818,-500.0,0.00027073,2]
[357514041,1744102231827,-500.0,0.00027073,2]
[357514042,1744102231836,-250.0,0.00027406,2]
[357514043,1744102231845,-500.0,0.0002774,5]
[357514044,1744102231854,-422.52295166,0.0002774,5]
[357514045,1744102231864,-3129.07962552,0.0002799,2]
[357514046,1744102231873,-176.16003083,0.00028671,2]
[357514047,1744102231882,-220.30819431,0.00028686,2]
[357514048,1744102231891,-452.4,0.00028742,3]
[357514049,1744102231901,-151.0,0.00028745,2]
[357514050,1744102231910,-151.0,0.00028745,2]
[357514051,1744102231919,-151.0,0.00028745,2]
[357514052,1744102231928,-151.0,0.00028745,2]
[357514053,1744102231937,-589.14847516,0.00028751,2]
[357514054,1744102231946,-436.5,0.00028751,2]
[357514055,1744102231955,-500.0,0.00028751,2]
[357514056,1744102231964,-526.9065841,0.00028751,2]
[357514057,1744102231973,-500.0,0.00028751,2]
[357514058,1744102231983,-500.0,0.00028751,2]
[357514059,1744102231991,-500.0,0.00028751,2]
[357514060,1744102232001,-186.36510225,0.00028751,2]
[357514061,1744102232009,-45856.74901196,0.00028752,2]
[357514077,1744102237824,-36.4553124,0.00028752,2]
[357514078,1744102237846,-998.86950075,0.00028752,2]
[357514079,1744102237871,-14371.56886969,0.00028752,2]
[357514080,1744102237881,-151.0,0.00028755,2]
[357514081,1744102237891,-248.55711519,0.00028755,2]
[357514082,1744102237901,-151.0,0.00028755,2]
[357514083,1744102237911,-200.0,0.00028755,2]
[357514084,1744102237920,-26857.37531558,0.00028762,2]
[357514085,1744102238517,-95669.91007442,0.00028762,2]
[357514086,1744102238528,-183790.928084,0.00028763,2]
[357514087,1744102238539,-500.0,0.00028771,2]
[357514088,1744102238549,-170.87764805,0.00028771,2]
[357514089,1744102238559,-500.0,0.00028771,2]
[357514090,1744102238569,-279.72000585,0.00028771,2]
[357514091,1744102238579,-181.58032331,0.00028771,2]
[357514092,1744102238589,-49437.68900464,0.00028772,2]
[357514093,1744102238599,-28039.14986835,0.00028772,3]
[357514094,1744102238609,-419.46366559,0.00028772,3]
[357514095,1744102238619,-837.41003169,0.00028772,3]
[357514096,1744102238628,-83986.60693181,0.00028773,2]
[357514138,1744102240141,-396.23276315,0.00028773,2]
[357514140,1744102240153,-714.78080813,0.00028773,2]
[357514143,1744102240164,-330.154,0.00028773,2]
[357514412,1744102243035,-55714.40491652,0.00028773,2]
[357514414,1744102243048,-8324.7419846,0.00028773,2]
[357514620,1744102245882,-1457.882902,0.00028773,2]
[357514621,1744102245988,-462.14600001,0.00028773,2]
[357514622,1744102246043,-752.13050441,0.00028773,2]
[357514634,1744102587121,10000.0,0.00016,2]
[357514635,1744102596987,10000.0,0.00016,2]
[357514636,1744102606121,9348.58252983,0.00016,2]
[357514637,1744102607285,-237.84553739,0.00016,2]
[357514638,1744102616118,10000.0,0.000155,2]
[357514639,1744102625237,10000.0,0.000155,2]
[357514640,1744102640010,10000.0,0.000155,2]
[357514641,1744102649343,10000.0,0.000155,2]
[357514642,1744102660769,7477.4901022,0.000155,2]
[357514643,1744102681869,10000.0,0.00022,10]
[357514644,1744102806447,-159.5185218,0.000155,2]
[357514645,1744102863627,-151.00000001,0.00015499,2]
[357514646,1744102870811,-148.99999999,0.00015499,2]
[357514647,1744102870834,-31.96510934,0.000155,2]
[357514648,1744102907005,-321.52174526,0.000155,2]
[357514649,1744102924304,-287.1933,0.00015499,2]
[357514650,1744102926189,-12.8067,0.00015499,2]
[357514651,1744102926212,-268.0285487,0.000155,2]
[357514652,1744102932927,-344.86286795,0.000155,2]
[357514653,1744102983752,-300.0,0.00015499,2]
[357514654,1744102984767,-188.02735345,0.000155,2]
[357514655,1744103000434,-202.90515104,0.000155,2]
[357514656,1744103010239,10093.21647,0.000155,10]
[357514657,1744103047265,-172.7680651,0.00015499,2]
[357514658,1744103053189,-127.2319349,0.00015499,2]
[357514659,1744103053214,-148.4327151,0.000155,2]
[357514660,1744103066181,-276.5493959,0.000155,2]
[357514661,1744103103673,-200.09992663,0.00015499,2]
[357514662,1744103135932,-99.90007337,0.00015499,2]
[357514663,1744103135958,-96.80772694,0.000155,2]
[357514664,1744103166473,-298.0,0.00015499,2]
[357514665,1744103166497,-2.0,0.00015499,2]
[357514666,1744103167686,-273.8779309,0.00015499,2]
[357514667,1744103172854,-24.1220691,0.00015499,2]
[357514668,1744103172877,-183.8779309,0.000155,2]
[357514669,1744103173860,-183.8779309,0.000155,2]
[357514670,1744103193111,-116.13490052,0.000155,2]
[357514671,1744103193134,-335.19923348,0.000155,2]
[357514672,1744103194330,-164.80076652,0.000155,2]
[357514673,1744103194356,-2.87165728,0.000155,2]
[357514674,1744103201364,-155.86981566,0.000155,2]
[357514675,1744103223308,-341.25852706,0.000155,2]
[357514676,1744103223336,-24.36674954,0.000155,2]
[357514677,1744103245425,-300.0,0.00015499,2]
[357514678,1744103245447,-52.040268,0.000155,2]
[357514679,1744103250076,-171.27117694,0.000155,2]
[357514680,1744103250717,-234.3344554,0.000155,2]
[357514681,1744103252092,-17.98735012,0.000155,2]
[357514682,1744103252116,-500.0,0.000155,2]
[357514683,1744103252138,-500.0,0.000155,2]
[357514684,1744103252159,-242.97539991,0.000155,2]
[357514685,1744103252179,-413.57193278,0.00016,2]
[357514686,1744103252200,-420.0,0.00016954,2]
[357514687,1744103252221,-500.0,0.00017567,2]
[357514688,1744103252241,-500.0,0.0001798,2]
[357514689,1744103252262,-501.59902072,0.0001798,2]
[357514690,1744103252282,-500.0,0.0001798,2]
[357514691,1744103252303,-500.0,0.0001798,2]
[357514692,1744103252324,-500.0,0.0001798,2]
[357514693,1744103252344,-500.0,0.0001798,2]
[357514694,1744103252364,-500.0,0.0001798,2]
[357514695,1744103252385,-500.0,0.0001798,2]
[357514696,1744103252406,-500.0,0.0001798,2]
[357514697,1744103252427,-500.0,0.0001798,2]
[357514698,1744103252446,-500.0,0.0001798,2]
[357514699,1744103252469,-500.0,0.0001798,2]
[357514700,1744103252490,-3140.72955643,0.00018446,2]
[357514701,1744103252511,-193.89373912,0.00018446,2]
[357514702,1744103252534,-204.36,0.00018536,2]
[357514703,1744103252554,-485.99729353,0.00018536,2]
[357514704,1744103259461,-35.69757341,0.00018536,2]
[357514705,1744103259484,-136.46814059,0.00018546,2]
[357514706,1744103276583,-155.06541874,0.00018361,2]
[357514707,1744103350107,-144.21743474,0.00018361,2]
[357514708,1744103350131,-500.0,0.00018573,2]
[357514709,1744103350151,-350.85921659,0.00018573,2]
[357514710,1744103350172,-281.53148256,0.00018573,2]
[357514711,1744103356192,-197.77132908,0.00018573,2]
[357514712,1744103364083,-155.06541874,0.00018387,2]
[357514713,1744103364104,-20.69718836,0.00018573,2]
[357514714,1744103364125,-506.236075,0.00021918,2]
[357514715,1744103364146,-300.0,0.00022399,2]
[357514716,1744103364166,-500.0,0.000224,2]
[357514717,1744103364186,-500.0,0.000224,2]
[357514718,1744103364206,-500.0,0.000224,2]
[357514719,1744103364225,-156.42545551,0.000224,2]
[357514720,1744103364245,-500.0,0.000224,2]
[357514721,1744103364266,-500.0,0.000224,2]
[357514722,1744103364286,-500.0,0.000224,2]
[357514723,1744103364306,-500.0,0.00023459,2]
[357514724,1744103364327,-24038.28126571,0.00023459,2]
[357514725,1744103369115,-18880.91740035,0.00023459,2]
[357514726,1744103370124,-2261.48884144,0.00023459,2]
[357514730,1744103431856,-4819.3124925,0.00023459,2]
[357514731,1744103431867,-500.0,0.00023473,2]
[357514732,1744103431878,-2774.13836192,0.00023952,2]
[357514733,1744103431889,-300.0,0.00024051,2]
[357514734,1744103431901,-500.0,0.00024052,2]
[357514735,1744103431915,-1000.0,0.00024052,2]
[357514736,1744103431926,-4210.67934163,0.000249,5]
[357514737,1744103431938,-155.0,0.00025,2]
[357514738,1744103431948,-466.57104112,0.00025982,2]
[357514739,1744103431958,-304.0,0.00026081,2]
[357514740,1744103431968,-540.391341,0.00026361,2]
[357514741,1744103431979,-211.99685314,0.00026877,2]
[357514742,1744103431991,-200.0,0.0002713,2]
[357514743,1744103432002,-186.5899066,0.00027192,2]
[357514744,1744103432015,-1000.0,0.00027879,5]
[357514745,1744103432026,-500.0,0.00027879,5]
[357514746,1744103432037,-208.08365202,0.0002788,2]
[357514747,1744103432047,-151.0,0.00027951,2]
[357514748,1744103432058,-160.10458817,0.00027951,2]
[357514749,1744103432068,-7451.8,0.00027958,3]
[357514750,1744103432079,-3725.9,0.00027958,3]
[357514751,1744103432090,-1862.95,0.00027958,3]
[357514752,1744103432101,-151.0,0.00027962,2]
[357514753,1744103432112,-220.50991244,0.00027965,2]
[357514754,1744103432123,-500.0,0.00027967,2]
[357514755,1744103432134,-500.0,0.00027967,2]
[357514756,1744103432145,-498.92460998,0.00027967,2]
[357514757,1744103432156,-500.0,0.00027967,2]
[357514758,1744103432166,-500.0,0.00027967,2]
[357514759,1744103432177,-339.52903144,0.00027967,2]
[357514760,1744103432187,-500.0,0.00027967,2]
[357514761,1744103432199,-500.0,0.00027967,2]
[357514762,1744103432209,-167.37749076,0.00027967,2]
[357514763,1744103432220,-500.0,0.00027967,2]
[357514764,1744103432231,-538.01851225,0.00027967,2]
[357514765,1744103432241,-500.0,0.00027967,2]
[357514766,1744103432253,-500.0,0.00027967,2]
[357514767,1744103432263,-500.0,0.00027967,2]
[357514768,1744103432274,-500.0,0.00027967,2]
[357514769,1744103432285,-500.0,0.00027967,2]
[357514770,1744103432296,-500.0,0.00027967,2]
[357514771,1744103432306,-500.0,0.00027967,2]
[357514772,1744103432317,-521.65736744,0.00027967,2]
[357514773,1744103432327,-500.0,0.00027967,2]
[357514774,1744103432338,-500.0,0.00027967,2]
[357514775,1744103432349,-500.0,0.00027967,2]
[357514776,1744103432361,-500.0,0.00027967,2]
[357514777,1744103432372,-500.0,0.00027967,2]
[357514778,1744103432382,-500.0,0.00027967,2]
[357514779,1744103432393,-500.0,0.00027967,2]
[357514780,1744103432405,-500.0,0.00027967,2]
[357514781,1744103432415,-500.0,0.00027967,2]
[357514782,1744103432426,-500.0,0.00027967,2]
[357514783,1744103432436,-500.0,0.00027967,2]
[357514784,1744103432447,-500.0,0.00027967,2]
[357514785,1744103432458,-500.0,0.00027967,2]
[357514786,1744103432469,-535.65,0.00027967,2]
[357514787,1744103432480,-500.0,0.00027967,2]
[357514788,1744103432490,-500.0,0.00027967,2]
[357514789,1744103432501,-500.0,0.00027967,2]
[357514790,1744103432512,-500.0,0.00027967,2]
[357514791,1744103432523,-500.0,0.00027967,2]
[357514792,1744103432534,-500.0,0.00027967,2]
[357514793,1744103432545,-500.0,0.00027967,2]
[357514794,1744103432555,-500.0,0.00027967,2]
[357514795,1744103432567,-500.0,0.00027967,2]
[357514796,1744103432579,-236.01898061,0.00027967,2]
[357514797,1744103432594,-500.0,0.00027967,2]
[357514798,1744103432605,-500.0,0.00027967,2]
[357514799,1744103432617,-500.0,0.00027967,2]
[357514800,1744103432628,-177.54083388,0.00027967,2]
[357514801,1744103432639,-419.46366559,0.00027968,3]
[357514802,1744103432649,-665.66703524,0.00027968,3]
[357514803,1744103432662,-1387.78387739,0.00027968,2]
[357514804,1744103432676,-928.14550992,0.00027968,2]
[357514805,1744103432688,-95844.72531459,0.00027968,2]
[357514806,1744103432698,-231.0964365,0.0002797,2]
[357514807,1744103432707,-500.0,0.00027973,5]
[357514808,1744103432717,-615.71153032,0.00027973,5]
[357514809,1744103432727,-500.0,0.00027973,5]
[357514810,1744103432903,-160.0,0.00027973,5]
[357514811,1744103432913,-500.0,0.00027973,5]
[357514812,1744103432923,-500.0,0.00027973,5]
[357514813,1744103432932,-500.0,0.00027973,5]
[357514814,1744103432942,-500.0,0.00027973,5]
[357514815,1744103432951,-500.0,0.00027973,5]
[357514816,1744103432960,-500.0,0.00027973,5]
[357514817,1744103432970,-500.0,0.00027973,5]
[357514818,1744103432979,-500.0,0.00027973,5]
[357514819,1744103432989,-174.64684328,0.00027973,5]
[357514820,1744103432998,-508.12655771,0.00027973,5]
[357514821,1744103433008,-500.0,0.00027973,5]
[357514822,1744103433017,-500.0,0.00027973,5]
[357514823,1744103433026,-98160.6547019,0.0002798,2]
[357514824,1744103433036,-61337.5616633,0.0002799,2]
[357514825,1744103433046,-156.44957525,0.00028573,2]
[357514826,1744103433056,-419.46366559,0.00028599,2]
[357514827,1744103433066,-837.41003169,0.00028599,2]
[357514828,1744103433076,-12530.86563381,0.00028599,2]
[357514829,1744103433086,-302.0,0.00028645,2]
[357514830,1744103433096,-200.0,0.00028645,2]
[357514831,1744103433107,-98160.6547019,0.00028652,2]
[357514832,1744103433117,-152.28,0.00028661,2]
[357514833,1744103433127,-500.0,0.00028661,2]
[357514834,1744103433137,-170.87764805,0.00028661,2]
[357514835,1744103433147,-500.0,0.00028661,2]
[357514836,1744103433157,-500.0,0.00028661,2]
[357514837,1744103433167,-325.17804825,0.00028661,2]
[357514838,1744103433178,-500.0,0.00028661,2]
[357514839,1744103433188,-93437.99054495,0.00028662,2]
[357514840,1744103433268,-1773.50257178,0.00028662,2]
[357514842,1744103438048,-931.48,0.00027958,3]
[357514843,1744103438058,-101109.81628727,0.00028662,2]
[357514844,1744103438068,-160.968227,0.00028672,7]
[357514845,1744103438077,-151.183217,0.00028672,7]
[357514846,1744103438086,-151.0,0.00028672,7]
[357514847,1744103438096,-283.012123,0.00028672,7]
[357514848,1744103438105,-151.0,0.00028672,7]
[357514849,1744103438120,-151.0,0.00028672,7]
[357514850,1744103438129,-235.22656,0.00028672,7]
[357514851,1744103438139,-151.0,0.00028672,7]
[357514852,1744103438148,-151.0,0.00028672,7]
[357514853,1744103438158,-2344.818888,0.00028672,2]
[357514855,1744103438168,-2344.818888,0.00028672,2]
[357514857,1744103438178,-151.0,0.00028672,7]
[357514859,1744103438188,-233.702958,0.00028672,7]
[357514860,1744103438197,-233.702958,0.00028672,7]
[357514861,1744103438206,-49437.68900464,0.00028672,2]
[357514862,1744103438215,-28039.14986835,0.00028672,3]
[357514863,1744103438224,-177.58053278,0.00028673,5]
[357514864,1744103438234,-500.0,0.00028673,5]
[357514865,1744103438244,-500.0,0.00028673,5]
[357514866,1744103438253,-500.0,0.00028673,5]
[357514867,1744103438263,-500.0,0.00028673,5]
[357514868,1744103438273,-500.0,0.00028673,5]
[357514869,1744103438282,-160.0,0.00028673,5]
[357514870,1744103438292,-500.0,0.00028673,5]
[357514871,1744103438301,-500.0,0.00028673,5]
[357514872,1744103438311,-500.0,0.00028673,5]
[357514873,1744103438320,-160.0,0.00028673,5]
[357514874,1744103438332,-500.0,0.00028673,5]
[357514875,1744103438342,-160.0,0.00028673,2]
[357514876,1744103438351,-500.0,0.00028673,5]
[357514877,1744103438363,-500.0,0.00028673,5]
[357514878,1744103438373,-500.0,0.00028673,5]
[357514879,1744103438382,-500.0,0.00028673,5]
[357514880,1744103438392,-357.30028375,0.00028673,5]
[357514881,1744103438402,-500.0,0.00028673,5]
[357514882,1744103438411,-500.0,0.00028673,5]
[357514883,1744103438421,-500.0,0.00028673,2]
[357514884,1744103438431,-500.0,0.00028673,5]
[357514885,1744103438441,-500.0,0.00028673,5]
[357514886,1744103438450,-500.0,0.00028673,5]
[357514887,1744103438460,-370000.0,0.00028673,2]
[357514888,1744103438470,-4114.63382931,0.00028673,2]
[357514889,1744103438479,-151.0,0.00028673,7]
[357514890,1744103438489,-151.0,0.00028673,2]
[357514891,1744103438498,-173.01005,0.00028673,7]
[357514892,1744103438507,-151.0,0.00028673,7]
[357514893,1744103438516,-151.0,0.00028673,7]
[357514894,1744103438526,-155.969362,0.00028673,7]
[357514895,1744103438536,-151.0,0.00028673,7]
[357514896,1744103438545,-2344.818888,0.00028673,2]
[357514897,1744103438554,-2344.818888,0.00028673,2]
[357514898,1744103438564,-151.0,0.00028673,7]
[357514899,1744103438573,-151.0,0.00028673,7]
[357514900,1744103438585,-233.702958,0.00028673,7]
[357514901,1744103438605,-233.702958,0.00028673,7]
[357514902,1744103438623,-151.0,0.00028673,7]
[357514903,1744103438633,-151.0,0.00028673,7]
[357514904,1744103438643,-196.5,0.00028762,2]
[357514905,1744103438653,-1000.0,0.00028952,2]
[357514906,1744103438663,-14903.6,0.00029328,3]
[357514907,1744103438672,-7451.8,0.00029328,3]
[357514908,1744103438683,-3725.9,0.00029328,3]
[357514909,1744103438694,-1862.96,0.00029328,3]
[357514910,1744103438704,-151.0,0.00029331,2]
[357514911,1744103438717,-207.4,0.00030014,2]
[357514912,1744103438735,-208.08365201,0.00030635,2]
[357514913,1744103438745,-188.0,0.000307,2]
[357514914,1744103438755,-215.0738,0.00031383,2]
[357514915,1744103438765,-6579.26025965,0.00032207,4]
[357514916,1744103438775,-223.0315306,0.00032752,2]
[357514917,1744103438785,-500.0,0.00032877,5]
[357514918,1744103438796,-208.08365201,0.0003339,2]
[357514919,1744103438806,-246.81545418,0.00033452,5]
[357514920,1744103438816,-500.0,0.00033452,5]
[357514921,1744103438826,-500.0,0.00033452,5]
[357514922,1744103438835,-500.0,0.00033452,5]
[357514923,1744103438845,-1000.0,0.00033452,5]
[357514924,1744103438855,-503.73197154,0.00033452,5]
[357514925,1744103438873,-500.0,0.00033452,5]
[357514926,1744103438885,-1001.84864208,0.00033452,5]
[357514927,1744103438895,-500.0,0.00033452,5]
[357514928,1744103438907,-500.0,0.00033452,5]
[357514929,1744103438916,-231.28369723,0.00034121,2]
[357514930,1744103438926,-1094.51586416,0.00034152,5]
[357514931,1744103438936,-500.0,0.00034152,5]
[357514932,1744103438946,-500.0,0.00034152,5]
[357514933,1744103438955,-501.37400606,0.00034152,5]
[357514934,1744103438965,-500.0,0.00034152,5]
[357514935,1744103438975,-500.0,0.00034152,5]
[357514936,1744103438985,-1000.0,0.00034152,5]
[357514937,1744103438995,-500.29873438,0.00034152,5]
[357514938,1744103439005,-556.09414674,0.00034152,5]
[357514939,1744103439015,-502.00945552,0.00034152,5]
[357514940,1744103439025,-245.55625774,0.00034152,5]
[357514941,1744103439036,-605.73616499,0.00034152,5]
[357514942,1744103439046,-1000.0,0.00034152,2]
[357514943,1744103439056,-1000.0,0.00034152,5]
[357514944,1744103439066,-1000.0,0.00034152,5]
[357514945,1744103439076,-1000.0,0.00034152,5]
[357514946,1744103439085,-257.52,0.000342,2]
[357514947,1744103439096,-706.0,0.00034489,2]
[357514948,1744103439106,-552.834,0.00034489,2]
[357514949,1744103439121,-2254.0,0.00034489,2]
[357514950,1744103439132,-565.632,0.00034763,30]
[357514951,1744103439142,-2000.0,0.00034841,4]
[357514952,1744103439152,-150.16910683,0.00034973,5]
[357514953,1744103439162,-37221.10132807,0.00035,30]
[357514954,1744103439173,-251.3,0.00035263,2]
[357514955,1744103439183,-150.0,0.00035263,2]
[357514956,1744103439193,-150.112,0.00035263,2]
[357514957,1744103439203,-150.119,0.00035263,2]
[357514958,1744103439213,-150.193,0.00035263,2]
[357514959,1744103439224,-153.798,0.00035263,2]
[357514960,1744103439233,-368.71630277,0.0003549,2]
[357514961,1744103439243,-807.03,0.000358,7]
[357514962,1744103439253,-389.129821,0.0003589,2]
[357514963,1744103439263,-179.89206476,0.00036061,15]
[357514964,1744103439274,-16197.17,0.000361,30]
[357514965,1744103439284,-160.0,0.000361,30]
[357514966,1744103439294,-208.08365201,0.00036145,2]
[357514967,1744103439304,-500.0,0.00037483,5]
[357514968,1744103439314,-500.0,0.00037483,5]
[357514969,1744103439331,-500.0,0.00037483,5]
[357514970,1744103439351,-500.0,0.00037483,5]
[357514971,1744103439370,-500.0,0.00037483,5]
[357514972,1744103439380,-500.0,0.00037483,5]
[357514973,1744103439391,-283.30335579,0.00037483,5]
[357514974,1744103439401,-565.69870945,0.00037483,5]
[357514975,1744103439412,-604.60346185,0.00037483,5]
[357514976,1744103439423,-500.0,0.00037483,5]
[357514977,1744103439433,-603.40918821,0.00037483,5]
[357514978,1744103439443,-602.59666098,0.00037483,5]
[357514979,1744103439464,-500.0,0.00037483,5]
[357514980,1744103439486,-500.0,0.00037483,5]
[357514981,1744103439508,-500.0,0.00037483,5]
[357514982,1744103439530,-500.0,0.00037483,5]
[357514983,1744103439552,-706.0,0.00037489,2]
[357514984,1744103439570,-543.0,0.00037489,2]
[357514985,1744103439583,-2253.0,0.00037489,2]
[357514986,1744103439600,-1500.0,0.00037898,5]
[357514987,1744103439610,-151.0,0.00038,18]
[357514988,1744103439621,-500.0,0.000382,5]
[357514989,1744103439634,-160.0,0.00038253,3]
[357514990,1744103439644,-150.0,0.00038263,2]
[357514991,1744103439654,-150.0,0.00038263,2]
[357514992,1744103439666,-500.0,0.00038324,5]
[357514993,1744103439676,-500.0,0.00038339,5]
[357514994,1744103439685,-500.0,0.00038339,5]
[357514995,1744103439696,-178.04,0.000384,30]
[357514996,1744103439706,-969.35,0.000384,30]
[357514997,1744103439716,-822.54,0.000384,30]
[357514998,1744103439725,-179.194,0.00038424,51]
[357514999,1744103439735,-10000.0,0.0003861,2]
[357515000,1744103439745,-152.49,0.000387,31]
[357515001,1744103439756,-152.49,0.000387,31]
[357515002,1744103439766,-152.49,0.000387,31]
[357515004,1744103439775,-152.49,0.000387,31]
[357515005,1744103439784,-152.49,0.000387,31]
[357515006,1744103439794,-152.49,0.000387,31]
[357515007,1744103439804,-152.49,0.000387,31]
[357515008,1744103439814,-152.49,0.000387,31]
[357515009,1744103439824,-152.49,0.000387,31]
[357515010,1744103439834,-152.49,0.000387,31]
[357515011,1744103439844,-152.49,0.000387,31]
[357515012,1744103439855,-152.49,0.000387,31]
[357515013,1744103439867,-205.18784,0.000388,120]
[357515014,1744103439877,-208.08365201,0.000389,2]
[357515015,1744103439886,-1500.0,0.00038971,2]
[357515016,1744103439896,-151.0,0.0003899,14]
[357515017,1744103439905,-151.0,0.0003899,14]
[357515018,1744103439915,-2344.818888,0.0003899,2]
[357515019,1744103439924,-2344.818888,0.0003899,2]
[357515020,1744103439934,-233.702958,0.0003899,14]
[357515021,1744103439943,-233.702958,0.0003899,14]
[357515022,1744103439954,-351270.0,0.00039,5]
[357515023,1744103439964,-151.0,0.00039,14]
[357515024,1744103439973,-382.124431,0.00039,14]
[357515025,1744103439983,-382.124431,0.00039,14]
[357515026,1744103439992,-151.0,0.00039,14]
[357515027,1744103440001,-151.0,0.00039,14]
[357515028,1744103440011,-151.0,0.00039,14]
[357515029,1744103440021,-151.0,0.00039,14]
[357515030,1744103440031,-151.0,0.00039,2]
[357515031,1744103440040,-151.0,0.00039,14]
[357515032,1744103440050,-151.0,0.00039,14]
[357515033,1744103440059,-151.0,0.00039,14]
[357515034,1744103440069,-2344.818888,0.00039,2]
[357515035,1744103440078,-2344.818888,0.00039,2]
[357515036,1744103440088,-151.0,0.00039,14]
[357515037,1744103440097,-151.0,0.00039,14]
[357515038,1744103440106,-233.702958,0.00039,14]
[357515039,1744103440117,-233.702958,0.00039,14]
[357515040,1744103440126,-151.0,0.00039,14]
[357515041,1744103440136,-239.067142,0.00039,14]
[357515042,1744103440146,-540.391341,0.00039542,2]
[357515043,1744103440157,-2200.0,0.00039963,14]
[357515044,1744103440167,-250.49597576,0.00039973,5]
[357515045,1744103440177,-200000.0,0.0004,5]
[357515046,1744103440187,-231327.53681718,0.0004,30]
[357515047,1744103440498,-6811.41349907,0.0004,30]
[357515048,1744103441220,-973.8645784,0.00027491,2]
[357515049,1744103441233,-401.0,0.00035285,2]
[357515050,1744103441242,-518.7,0.00035423,30]
[357515051,1744103441252,-401.0,0.00038285,2]
[357515052,1744103441261,-689.95870775,0.0004,30]
[357515055,1744103443130,-151.0,0.00028673,7]
[357515056,1744103443140,-526465.1755189,0.0004,30]
[357515057,1744103443150,-151.0,0.0004,14]
[357515058,1744103443159,-151.0,0.0004,14]
[357515059,1744103443169,-151.365235,0.0004,14]
[357515060,1744103443179,-151.0,0.0004,14]
[357515061,1744103443188,-151.0,0.0004,14]
[357515062,1744103443198,-382.124431,0.0004,14]
[357515063,1744103443207,-382.124431,0.0004,14]